Cogmind - Beta 16.1 @@@ ROGUE MODE // 2026.03.06 @ 02:25:22 Player: +Jones Result: Destroyed by VE-MJT(R) with Subdweller Laser Performance ------------- Evolutions (0) 0 Regions Visited (2) 400 Robots Destroyed (42) 210 Value Destroyed (890) 890 Prototype IDs (2) 40 Alien Tech Used (0) 0 Bonus (0) 0 TOTAL SCORE: 1540 Bonus ------- None Cogmind --------- Core Integrity 0/250 Matter 256/300 Energy 128/200 System Corruption 1% Temperature Cool (6) Movement Treading (160) Location -10/Subcaves Parts ------- > --- POWER (1) -------- Subdweller Power Source > --- PROPULSION (2) --- Light Treads Light Treads > --- UTILITY (2) ------ Large Storage Unit Light Armor Plating > --- WEAPON (2) ------- Subdweller Laser Subdweller Machine Gun > --- INVENTORY (15) --- Subdweller Power Source Light Treads Light Treads Light Treads Light Treads Improved Terrain Scanner Seismic Detector Seismic Detector Makeshift Light Armor Plating Subdweller Laser Subdweller Machine Gun Grenade Launcher Mining Laser Peak State ------------ > --- POWER ------------ Subdweller Power Source > --- PROPULSION ------- Light Treads Spiked Treads > --- UTILITY ---------- Large Storage Unit Light Armor Plating > --- WEAPON ----------- Subdweller Machine Gun Subdweller Machine Gun > --- INVENTORY -------- Light Treads Light Treads Light Treads Light Treads Light Treads Improved Terrain Scanner Seismic Detector Seismic Detector Light Armor Plating Makeshift Light Armor Plating Subdweller Laser Subdweller Laser Grenade Launcher Mining Laser [Rating: 13] Favorites ----------- Power Light Ion Engine Engine Light Ion Engine Propulsion Light Treads Treads Light Treads Utility Large Storage Unit Device Seismic Detector Storage Large Storage Unit Protection Light Armor Plating Weapon Assault Rifle Energy Gun Medium Laser Ballistic Gun Assault Rifle Special Weapon Mining Laser Build | -11 -10 -10 ------- Run | Yrd Mat Sub Slots Evolved . | . . . Power . | . . . Propulsion . | . . . Utility . | . . . Weapon . | . . . Parts Attached 28 | 7 12 9 Power 3 | 1 1 1 Engine 3 | 1 1 1 Core . | . . . Reactor . | . . . Propulsion 9 | 2 4 3 Treads 9 | 2 4 3 Leg . | . . . Wheel . | . . . Hover . | . . . Flight . | . . . Utility 7 | 2 4 1 Device 1 | 1 . . Storage 3 | 1 2 . Processor . | . . . Hackware . | . . . Protection 3 | . 2 1 Artifact . | . . . Weapon 9 | 2 3 4 Energy Gun 3 | 2 . 1 Energy Cannon . | . . . Ballistic Gun 5 | . 2 3 Ballistic Cannon . | . . . Launcher . | . . . Special Weapon 1 | . 1 . Impact Weapon . | . . . Slashing Weapon . | . . . Piercing Weapon . | . . . Special Melee Weapon . | . . . Unidentified Prototypes . | . . . Parts Lost 4 | . . 4 Power 1 | . . 1 Propulsion 2 | . . 2 Utility 1 | . . 1 Weapon . | . . . Highest Loss Streak 2 | . . 2 To Critical Strikes . | . . . Average Backups 12 | 1 12 14 Power . | . . . Propulsion 5 | . 6 5 Utility 4 | . 4 5 Weapon 2 | . 2 3 Tool/Special . | . . . Unused Backups 15 | . 3 12 Power 1 | . . 1 Propulsion 4 | . . 4 Utility 6 | . 2 4 Weapon 4 | . 1 3 Tool/Special . | . . . Average Slot Usage (%) 99 | . 100 99 Engine 13 | . 14 13 Treads 27 | . 28 27 Device 5 | . 10 . Storage 14 | . 14 14 Protection 8 | . 3 13 Energy Gun 2 | . 5 . Ballistic Gun 21 | . 19 22 Special Weapon 3 | . 2 5 Peak Build Rating 13 | 7 9 13 Average Rating 8 | 5 7 10 On Entrance 5 | . 7 8 Avg Prop Armor Cover (%) . | . . . Naked Turns . | . . . Heaviest Build 36 | 12 30 36 Greatest Support 40 | 40 40 40 Greatest Overweight (x) . | . . . Average Overweight (x) . | . . . Largest Inventory Capacity 15 | 8 15 15 Average Capacity 14 | 7 14 15 Most Carried 15 | 3 15 15 Average Carried 12 | 1 13 14 Final Capacity 15 | 8 15 15 Final Carried 15 | 3 15 13 Class Distribution -------------------- 100% | Mutant Dominant Class ---------------- Mutant | -10/Materials Mutant | -10/Subcaves Resources | -11 -10 -10 ----------- Run | Yrd Mat Sub Matter Collected 1077 | 270 458 349 Remotely . | . . . Salvage Created 1423 | 260 884 279 Parts 110 | 34 50 26 Haulers Intercepted 2 | . 2 . Recyclers Shooed 2 | 1 1 . Parts Field Recycled . | . . . Retrieved Matter . | . . . Parts Self-Destructed 9 | . . 9 Prevented . | . . . Parts Restored . | . . . Kills | -11 -10 -10 ------- Run | Yrd Mat Sub Combat Hostiles Destroyed 23 | . 14 9 Guns 23 | . 14 9 Classes Destroyed 9 | 3 5 1 Worker 1 | 1 . . Tunneler 9 | 9 . . Hauler 2 | . 2 . Recycler 3 | 1 2 . Mechanic 1 | . 1 . Watcher 3 | . 3 . Swarmer 5 | . 3 2 Grunt 11 | . 11 . Subdweller 7 | . . 7 Best Kill Streak 6 | 6 3 2 Combat Bots Only 3 | . 3 2 Max Kills in Single Turn 2 | 1 2 1 Gunslinging 1 | . 1 . Exploded . | . . . Melee . | . . . Uniques/NPCs Destroyed . | . . . Combat | -11 -10 -10 -------- Run | Yrd Mat Sub Hostile Shots Fired 105 | . 52 53 Missed 21 | . 12 9 Hits 84 | . 40 44 Projectile 84 | . 40 44 AOE 2 | . . 2 Critical Strikes 2 | . 2 . Damage Taken 1503 | . 500 1003 Core 254 | . 96 158 Absorbed by Shields . | . . . Core Remaining (%) 100 | 100 . . Volleys Fired 158 | 22 73 63 Largest 2 | 2 2 2 Hottest 100 | 90 100 100 Shots Fired 273 | 41 135 97 Gun 246 | 41 127 78 Cannon . | . . . Launcher . | . . . Special 27 | . 8 19 Kinetic 165 | . 90 75 Thermal 108 | 41 45 22 Explosive . | . . . Electromagnetic . | . . . Robot Hit Streak 27 | 6 17 27 Robot Miss Streak 4 | 3 4 2 Penetration Max . | . . . Secondary Targets 4 | . 1 3 Max Gunslinging Chain 1 | . 1 1 Shots Hit Robots 175 | 24 98 53 Core Hits 67 | 12 39 16 Critical Kills 1 | . 1 . Critical Parts Destroyed 3 | . 1 2 Critical Strikes 9 | 2 4 3 Burn 4 | 2 2 . Destroy 5 | . 2 3 Melee Attacks . | . . . Impact . | . . . Slashing . | . . . Piercing . | . . . Sneak Attacks . | . . . Combat Hostiles . | . . . Follow-up Attacks . | . . . Damage Inflicted 2531 | 310 1252 969 Guns 2531 | 310 1252 969 Cannons . | . . . Explosions . | . . . Melee . | . . . Ramming . | . . . Kinetic 1814 | . 909 905 Thermal 717 | 310 343 64 Explosive . | . . . Electromagnetic . | . . . Impact . | . . . Slashing . | . . . Piercing . | . . . Highest Corruption 1 | . 1 1 Average Corruption 1 | . 1 1 Corruption Purged . | . . . Corruption Blocked . | . . . Effects 26 | . 12 14 Message Errors 4 | . 2 2 Matter Fused 6 | . 3 3 Heat Flow Errors 3 | . 2 1 Energy Discharges 5 | . 1 4 Data Loss (minor) 4 | . 3 1 Data Loss (major) 1 | . 1 . Misfires 1 | . . 1 Alerts 2 | . . 2 Overload Shots . | . . . Overflow Damage . | . . . Projectiles . | . . . Explosions . | . . . Melee . | . . . Knockbacks . | . . . Impact . | . . . Kinetic . | . . . Secondary . | . . . Self-Inflicted Damage . | . . . Shots . | . . . Rammed . | . . . Targets Rammed . | . . . Kicked . | . . . Crushed . | . . . Highest Temperature 323 | 210 323 145 Average Temperature 78 | 68 84 74 Received Heat Transfer 435 | . 297 138 Effects 1 | . 1 . Shutdowns 1 | . 1 . Siege Activations . | . . . Martial Activations . | . . . Shielding Activations . | . . . Robots Disrupted . | . . . Combat Hostiles . | . . . Robots Corrupted . | . . . Combat Hostiles . | . . . Parts Fried . | . . . Impact Corruptions . | . . . Robots Melted . | . . . Combat Hostiles . | . . . Parts Melted 5 | 1 4 . Heat Transferred 2082 | 954 1053 75 Parts Sabotaged . | . . . Parts Stolen . | . . . Parts Stripped . | . . . Power Chain Reactions . | . . . Alert | -11 -10 -10 ------- Run | Yrd Mat Sub Maximum Alert Level . | . . . Low Security (%) 100 | 100 100 . Level 1 . | . . . Level 2 . | . . . Level 3 . | . . . Level 4 . | . . . Level 5 . | . . . High Security . | . . . Max Security . | . . . Peak Influence 162 | 20 162 . Initial 3 | . 3 . Average 40 | 3 45 . Influence Increases 590 | 55 495 40 Destroy 0b10 Robot/C 320 | . 280 40 Destroy 0b10 Robot/NC 95 | 55 40 . Destroy Leader 70 | . 70 . Successful Hack 22 | . 22 . Select Force Hacks 60 | . 60 . Destroy Structure 8 | . 8 . Lose Combat Pursuer 15 | . 15 . Influence Decreases 590 | 50 385 155 Entered New Map 58 | . 2 56 Time Decay 532 | 50 383 99 Squads Dispatched 2 | . 2 . Investigation 2 | . 2 . Extermination . | . . . Reinforcement . | . . . Assault . | . . . Garrison . | . . . Intercept . | . . . Searches Triggered . | . . . Construction Impeded . | . . . Haulers Reinforced . | . . . Active Scanning Responses . | . . . Cargo Convoy Interrupts . | . . . Stealth | -11 -10 -10 --------- Run | Yrd Mat Sub Distress Signals 2 | . 2 . Communications Jammed . | . . . Distress Signals . | . . . Times Spotted 34 | . 23 11 Peak Tracking Total 6 | . 6 2 Tactical Retreats 1 | . 1 . Traps | -11 -10 -10 ------- Run | Yrd Mat Sub Traps Triggered 3 | . 1 2 Indirectly . | . . . Trap Hack Attempts . | . . . Triggered . | . . . Disarmed . | . . . Reprogrammed . | . . . Reused . | . . . Traps Extracted . | . . . Installed . | . . . Triggered . | . . . Machines | -11 -10 -10 ---------- Run | Yrd Mat Sub Machines Disabled . | . . . Max in Single Turn . | . . . Machines Repaired . | . . . Machines Dismantled . | . . . Machines Sabotaged . | . . . Overloaded Fab Kills . | . . . Hacking | -11 -10 -10 --------- Run | Yrd Mat Sub Machines Accessed 11 | . 10 1 Terminals 7 | . 7 . Fabricators . | . . . Repair Stations 1 | . 1 . Recycling Units 2 | . 2 . Scanalyzers . | . . . Garrison Access . | . . . Total Hacks 32 | . 30 2 Successful 18 | . 16 2 Failed 13 | . 13 . Catastrophic 2 | . 2 . Database Lockouts 1 | . 1 . Manual 18 | . 18 . Terminals 22 | . 22 . Fabricators . | . . . Repair Stations 3 | . 3 . Recycling Units 5 | . 5 . Scanalyzers . | . . . Garrison Access . | . . . Terminal Hacks 7 | . 5 2 Record 2 | . . 2 Robot Analysis 2 | . 2 . Prototype ID Bank 1 | . 1 . Locate Traps 2 | . 2 . Fabricator Hacks . | . . . Repair Station Hacks . | . . . Recycling Unit Hacks 1 | . 1 . Retrieve Components 1 | . 1 . Scanalyzer . | . . . Garrison Access Hacks . | . . . Unauthorized Hacks 10 | . 10 . Terminals 8 | . 8 . Botnet 2 | . 2 . Operators 1 | . 1 . Skim 5 | . 5 . Fabricators . | . . . Repair Stations . | . . . Recycling Units 2 | . 2 . Tunnel 2 | . 2 . Scanalyzers . | . . . Garrison Access . | . . . Data Cores Recovered . | . . . Used . | . . . Hacking Detections 8 | . 8 . Full Trace Events . | . . . Feedback Events . | . . . Feedback Blocked . | . . . Robot Schematics Acquired . | . . . Robots Built . | . . . Authchips . | . . . Time . | . . . Total Robot Build Rating . | . . . Part Schematics Acquired . | . . . Parts Built . | . . . Authchips . | . . . Time . | . . . Total Part Build Rating . | . . . Part Studies Acquired . | . . . Parts Repaired . | . . . Time . | . . . Parts Recycled . | . . . Recycled Matter . | . . . Retrieved Matter . | . . . Retrieved Components 7 | . 7 . Parts Scanalyzed . | . . . Part Schematics Acquired . | . . . Parts Damaged . | . . . Bothacking | -11 -10 -10 ------------ Run | Yrd Mat Sub Used RIF Installer . | . . . Robots Hacked . | . . . Non-combat . | . . . Combat . | . . . Robot Hacks Applied . | . . . Relay Couplers Released . | . . . Fabnet Peak Effective % . | . . . Robots Rewired . | . . . Allies Hacked . | . . . Hacks Repelled . | . . . Allies | -11 -10 -10 -------- Run | Yrd Mat Sub Total Allies . | . . . Largest Group . | . . . Highest-Rated Group . | . . . Highest-Rated Ally . | . . . Total Orders . | . . . Ally Attacks . | . . . Total Damage . | . . . Kills . | . . . Allies Corrupted . | . . . Allies Melted . | . . . Intel | -11 -10 -10 ------- Run | Yrd Mat Sub Active Infowar (turns) 1279 | 43 1236 . Seismic 1279 | 43 1236 . Robot Analysis Total 2 | . 2 . Derelict Logs Recovered 1 | . . 1 Drone Launches . | . . . Drone Recoveries . | . . . Exploration | -11 -10 -10 ------------- Run | Yrd Mat Sub Turns Passed 3539 | 256 1664 1619 Spaces Moved 1643 | 59 761 823 Core 5 | 5 . . Treads 1638 | 54 761 823 Legs . | . . . Wheels . | . . . Hover . | . . . Flight . | . . . Fastest Speed 50 | 50 160 160 Average Speed 159 | 150 160 160 Slowest Speed 160 | 160 160 160 Overloaded Moves . | . . . Propulsion Burnouts . | . . . Robots Hopped . | . . . Potential Cave-ins . | . . . Cave-ins Triggered . | . . . Exploration Rate (%) 50 | 3 99 49 Regions Visited 2 Branch Regions 1 Pre-discovered Areas 4 | . 2 2 Known Exits Taken 1 | . 1 . Unknown Exits Taken 1 | 1 . . Scrap Searched . | . . . Spaces Dug 7 | . 7 . Terrain Destroyed 8 | . 8 . Melee . | . . . Projectile 8 | . 8 . AOE . | . . . Terrain Rammed . | . . . Walls Destroyed . | . . . Machines Disabled . | . . . Actions | -11 -10 -10 --------- Run | Yrd Mat Sub Total 2229 | 182 1057 990 Wait 336 | 92 172 72 Move 1641 | 58 760 823 Hop . | . . . Pick Up 31 | 3 20 8 Fast Attach 10 | 7 1 2 Attach 8 | . 2 6 Detach 1 | . 1 . Swap 23 | . 16 7 Drop 21 | . 12 9 Fire 158 | 22 73 63 Melee . | . . . Ram . | . . . Kick . | . . . Crush . | . . . Escape Stasis . | . . . Rewire . | . . . Trap . | . . . Miscellaneous . | . . . Route ------- -11/Scrapyard -10/Materials (discovered 5 exits: [*Mat x3] / [*Min] / *Sub) -10/Subcaves (discovered 1 exit: [*Mat]) History --------- Turn | Location | Event 21 | -11/Scrapyard | Discovered new exit (range 16) 257 | -11/Scrapyard | Entered Materials 315 | -10/Materials | Build established: Mutant 690 | -10/Materials | Discovered new exit (range 8) 819 | -10/Materials | Discovered new exit (range 6) 1022 | -10/Materials | Discovered new exit (range 16) 1550 | -10/Materials | Discovered new exit (range 16) 1623 | -10/Materials | Central database locked down 1684 | -10/Materials | Learned Recycling recycling unit intel 1735 | -10/Materials | Loaded intel: 19 trap records 1776 | -10/Materials | Identified exit to Subcaves 1809 | -10/Materials | Learned location of 2 exits from Materials 1834 | -10/Materials | Learned 4 Subcaves zone layouts 1875 | -10/Materials | Learned Materials trap positions 1909 | -10/Materials | Learned 4 Recycling zone layouts 1921 | -10/Materials | Entered Subcaves 2112 | -10/Subcaves | Discovered new exit (range 10) 2226 | -10/Subcaves | Shifting Twisted Machinery released Spk. Treads 2518 | -10/Subcaves | Visited Clippyterm 2523 | -10/Subcaves | Learned location of Section 7 (-2) 2681 | -10/Subcaves | A swath of the cavern ceiling suddenly collapsed 2788 | -10/Subcaves | Core integrity fell below 50% 2863 | -10/Subcaves | Learned location of Mines (-10) 3516 | -10/Subcaves | Core integrity fell below 20% 3517 | -10/Subcaves | Ambushed by Subdweller buried in earth 3540 | -10/Subcaves | Destroyed by VE-MJT(R) with Subdweller Laser Last Messages --------------- 03093_ Dropped Assault Rifle. 03095_ Acquired Sub. Power Source. 03096_ Acquired 1 matter. 03285_ Acquired 25 matter. 03287_ System corrupted: Matter fused (-8). 03424_ System corrupted: Matter fused (-9). 03446_ Acquired 14 matter. 03477_ Acquired 3 matter. 03493_ System corrupted: IFF burst signal emitted. 03518_ VE-MJT(R): "ARGHSUB!" 03522_ Lgt. Armor Plating destroyed. 03523_ MH-YFH(R) destroyed. 03526_ Sub. Machine Gun shoots sparks and powers down. 03528_ Spk. Treads destroyed. 03531_ VE-MJT(R) affixes Scrap Shield Fragment to Scrap Shield. 03539_ VE-MJT(R) suffers critical hit (Destroy). 03539_ Destroyed Sub. Optics. Map ----- +----------------------------------------------------+ | ????## #?# ## ######??????????????????? | | ????# #?# #### #####???????????????????? | | ????# ##?## #### ##??????????????????? | | ????# #???###?# #??????????????????? | | ????## ##???#### ### ##??????????????????? | | ?????## ##### #####?## #???????????????????? | | ?????## #??????# ##???????????????????? | | ?##### ######## #????????????????????? | | ## ## ## #????????????????????? | | # ## #????????????????????? | | # #### #????????????????????? | | # #??#### #????????????????????? | | ##?????## #????????????????????? | | ! ##???????## #????????????????????? | | ##????????# ## #????????????????????? | | ### ##??????## ## #????????????????????? | | ##?# ##????## #????????????????????? | | #??# ### #????# ##????????????????????? | | #??###?# ##???# ##?????????????????????? | | ##??????# #??## ####??????????????????????? | | #???????# #### #########???????????????????? | | #???##### #; ;; ##??????????????????? | | #???# ## ;###????????????????? | | #??# ### % ###??????????????? | | #??# #####?### #??????????????? | | #??# #???????## R@ ;#???????????????????? | | #######????????# % #???????????????????? | | #????????????#" "" ;;! #??????????????????? | | #????????????##""" # ##??????????????????? | | #?????????????#" ########???????????????????? | | #????????????#" ??????????????????????????? | | ##???????????# " ?????????????????????????? | | #???????????## """ "????????????????????????? | | #????????????# """ "#????????????????????????? | | ##???????????? " ###????????????????????????? | | ##????????????"" ##??????????????????????????? | | #????????????""" " ????????????????????????????? | | #????????????""#" #????????????????????????????? | | ##?????????????##??????????????????????????????? | | #?????????????????????????????????????????????? | | #?????????????????????????????????????????????? | | ##?????????????????????????????????????????????? | | ##??????????????????????????????????????????????? | | #???????????????????????????????????????????????? | | #???????????????????????????????????????????????? | | %#???????????????????????????????????????????????? | | ##???????????????????????????????????????????????? | | ?????? #??????# ## #??# #????#"" | | ?????? ########## # ## ##?## #????#" | | ?????? ### # # ##### ## # ### ###??# | +----------------------------------------------------+ Best States ------------- Heat Dissipation 25 Energy Generation 10 Energy Capacity 200 Matter Stores 300 Matter Capacity 300 Sight Range 16 Terrain Scan Density 10 Armor Coverage 150 Evasion (%) 40 Recoil Reduction 2 Item Schematics ----------------- None Robot Schematics ------------------ None Fabricated ------------ Nothing Repaired ---------- Nothing Studied --------- None Alien Tech Used ----------------- None Achievements -------------- None Challenges ------------ None Game ------ Seed RelayForceCalibrator Manual? 0 Play Time 00:19:08 Cumulative 440.7 hours Start 2026.03.06 @ 02:08:43 End 2026.03.06 @ 02:25:22 Sessions 1 Manual Loads 0 Difficulty Rogue Special Mode None Game No. 346 Rogue 346 Adventurer 0 Explorer 0 Win Type - Total 6 Types 4/0/0/0/0/0/0/2/0/0 Lore% 70 Gallery% 71 Achievement% 58 Wizard Run 0 Options --------- Layout 1 ASCII 0 Keyboard 0 Movement Mouse Keybinds 0 Fullscreen 1 Font 32/SmallcapsGlow Map View 50x35 Zoom Use 0% Tactical HUD 1 Map Filters NONE Filters NONE Steam 1 RUN: 4516d5bc-f5cd-451a-bb33-6a5072f44645